bitfinex/quotes_BTCUSD_20241205
["timestamp","ask_amount","ask_price","bid_price","bid_amount"]
[1733370872533,0.193423,103400.0,103380.0,0.058034]
[1733370872756,0.5210613,103410.0,103380.0,0.116072]
[1733370872958,0.63865169,103410.0,103380.0,0.116072]
[1733370873169,0.17178218,103410.0,103380.0,0.116072]
[1733370873382,0.29309105,103410.0,103380.0,0.116072]
[1733370873786,0.48650705,103410.0,103370.0,0.158042]
[1733370874030,0.193426,103400.0,103370.0,0.216082]
[1733370874447,0.29310205,103400.0,103370.0,0.116082]
[1733370874984,0.53253805,103400.0,103370.0,0.05804]
[1733370875200,0.60513336,103400.0,103370.0,0.15804]
[1733370875440,0.53253805,103400.0,103370.0,0.15804]
[1733370875673,0.53253805,103400.0,103360.0,0.12621069]
[1733370875900,0.193461,103380.0,103350.0,0.21940248]
[1733370876287,0.19348,103370.0,103350.0,0.15]
[1733370876822,0.193498,103360.0,103340.0,0.02067368]
[1733370877029,0.48663605,103370.0,103340.0,0.07873368]
[1733370877030,0.48664705,103370.0,103340.0,0.07873368]
[1733370877227,0.55784119,103370.0,103340.0,0.13679368]
[1733370877435,0.55784119,103370.0,103340.0,0.13738006]
[1733370878265,0.75133919,103370.0,103340.0,0.07932006]
[1733370878464,0.60544119,103370.0,103340.0,0.02126006]
[1733370878670,0.193499,103360.0,103340.0,0.02126006]
[1733370878865,0.62791897,103360.0,103340.0,0.02126006]
[1733370879129,0.43441997,103360.0,103340.0,0.00231798]
[1733370879332,0.0807,103360.0,103340.0,0.06037798]
[1733370879549,10.39108,103370.0,103340.0,0.06037798]
[1733370879719,10.68424805,103370.0,103340.0,0.06037798]
[1733370879890,10.49075605,103370.0,103330.0,0.12623069]
[1733370880089,10.49075605,103370.0,103340.0,0.116115]
[1733370880326,10.23604753,103370.0,103340.0,0.05806]
[1733370880494,10.18844753,103370.0,103350.0,0.28394274]
[1733370880806,10.18844753,103370.0,103360.0,0.058049]
[1733370881017,10.17044752,103370.0,103360.0,0.058049]
[1733370881219,10.17044752,103370.0,103360.0,0.22589174]
[1733370881393,10.17044752,103370.0,103360.0,0.26829081]
[1733370881580,10.13199999,103370.0,103360.0,0.41829081]
[1733370882390,10.13199999,103370.0,103360.0,0.37589174]
[1733370883867,10.13199999,103370.0,103360.0,0.30772505]
[1733370884086,10.13199999,103370.0,103360.0,0.208049]
[1733370884291,10.13199999,103370.0,103360.0,0.37589174]
[1733370884705,9.95799998,103370.0,103360.0,0.37589174]
[1733370885342,9.95799998,103370.0,103360.0,0.16889704]
[1733370885551,9.95799998,103370.0,103340.0,0.18601769]
[1733370885763,10.44465003,103370.0,103340.0,0.050116]
[1733370885968,10.44465003,103370.0,103330.0,0.19402777]
[1733370885969,0.48667605,103360.0,103330.0,0.09694608]
[1733370887974,0.19353,103350.0,103330.0,0.00017608]
[1733370888179,0.193554,103340.0,103310.0,0.0501298]
[1733370888388,0.193554,103330.0,103310.0,0.00191102]
[1733370888596,0.48679805,103330.0,103310.0,0.00191102]
[1733370889213,0.73993919,103330.0,103310.0,0.00191102]
[1733370889416,0.48679805,103330.0,103310.0,0.00191102]
[1733370889636,0.29323005,103330.0,103310.0,0.05030802]
[1733370889845,0.29323005,103330.0,103300.0,0.198399]
[1733370890057,0.29340578,103330.0,103300.0,0.246798]
[1733370890266,0.29340578,103330.0,103300.0,0.295197]
[1733370890504,0.29340578,103330.0,103310.0,0.048397]
[1733370890731,0.00017573,103330.0,103310.0,0.048396]
[1733370890966,0.00017573,103330.0,103320.0,0.29593574]
[1733370891432,0.00017573,103330.0,103320.0,0.048393]
[1733370891668,0.00017573,103330.0,103320.0,0.07644962]
[1733370891881,0.00017573,103330.0,103320.0,0.24429236]
[1733370892522,0.00017573,103330.0,103320.0,0.32659236]
[1733370892737,0.00017573,103330.0,103320.0,0.35657238]
[1733370893406,0.00017573,103330.0,103320.0,0.21623574]
[1733370895049,0.00017573,103330.0,103320.0,0.14806905]
[1733370895255,0.00017573,103330.0,103320.0,0.21623574]
[1733370895675,0.00017573,103330.0,103320.0,0.17802815]
[1733370896045,0.00017573,103330.0,103320.0,0.14806905]
[1733370896255,0.193536,103340.0,103320.0,0.14806905]
[1733370896460,0.193537,103340.0,103320.0,0.04856873]
[1733370896664,0.05317874,103340.0,103320.0,0.00017573]
[1733370896864,0.44026274,103340.0,103320.0,0.00017573]
[1733370897014,0.24671474,103340.0,103320.0,0.04856873]
[1733370897217,0.53178237,103350.0,103320.0,0.09696173]
[1733370897395,0.82498842,103350.0,103320.0,0.09696173]
[1733370897602,0.63145642,103350.0,103320.0,0.04856873]
[1733370897804,0.193536,103340.0,103320.0,0.04856873]
[1733370898070,0.193536,103340.0,103310.0,0.06944826]
[1733370898240,0.193556,103330.0,103310.0,0.0017378]
[1733370898447,0.387121,103330.0,103310.0,0.0017378]
[1733370899053,0.387136,103330.0,103310.0,0.0017378]
[1733370899313,0.193573,103320.0,103310.0,0.0017378]
[1733370899475,0.29324905,103320.0,103310.0,0.00134993]
[1733370899705,0.24909749,103320.0,103310.0,0.00134993]
[1733370900122,0.44267049,103320.0,103310.0,0.00134993]
[1733370900689,0.37144905,103320.0,103310.0,0.00134993]
[1733370901368,0.41964905,103320.0,103310.0,0.00134993]
[1733370903992,0.45148236,103320.0,103310.0,0.00134993]
[1733370904648,0.46490836,103320.0,103310.0,0.00134993]
[1733370905793,0.19361,103300.0,103290.0,0.0017326]
[1733370906263,0.387201,103310.0,103290.0,0.0017326]
[1733370906467,0.19361,103300.0,103290.0,0.0017326]
[1733370906680,0.68048305,103310.0,103290.0,0.0017326]
[1733370907113,0.19361,103300.0,103290.0,0.0017326]
[1733370908279,0.00017593,103310.0,103290.0,0.10140865]
[1733370908490,0.00017593,103310.0,103300.0,0.058083]
[1733370908944,0.00017593,103310.0,103300.0,0.22592574]
[1733370909360,0.00017593,103310.0,103300.0,0.30292574]
[1733370909807,0.00017593,103310.0,103300.0,0.33273576]
[1733370910021,0.00017593,103310.0,103300.0,0.30292574]
[1733370910233,0.00017593,103310.0,103300.0,0.4049664]
[1733370911168,0.27643972,103360.0,103340.0,0.058057]
[1733370911421,0.09985214,103360.0,103330.0,0.058066]
[1733370911637,0.00017609,103360.0,103350.0,0.058055]
[1733370911875,0.00017609,103360.0,103340.0,0.21579205]
[1733370912078,0.322567,103380.0,103370.0,0.04182393]
[1733370912363,0.193461,103380.0,103350.0,0.12621569]
[1733370912570,0.386913,103390.0,103360.0,0.058044]
[1733370912780,0.29313205,103390.0,103350.0,0.28394974]
[1733370913032,0.19348,103370.0,103350.0,0.058053]
[1733370913258,0.19348,103370.0,103340.0,0.00017609]
[1733370913259,0.193517,103350.0,103340.0,0.00017609]
[1733370913490,0.29317405,103360.0,103340.0,0.00017609]
[1733370913741,0.61409005,103360.0,103340.0,0.00017609]
[1733370913977,0.29319305,103350.0,103340.0,0.00017609]
[1733370914207,0.32502636,103350.0,103340.0,0.00017609]
[1733370914434,0.4189704,103350.0,103340.0,0.00017609]
[1733370914659,0.48713709,103350.0,103340.0,0.00017609]
[1733370915108,0.387108,103330.0,103290.0,0.33400259]
[1733370915326,0.193575,103320.0,103300.0,0.058083]
[1733370915551,0.193575,103320.0,103290.0,0.24069365]
[1733370915767,0.29325105,103320.0,103290.0,0.1410176]
[1733370915984,0.193593,103310.0,103290.0,0.0017326]
[1733370916233,0.387197,103310.0,103290.0,0.0017326]
[1733370916443,0.19361,103300.0,103290.0,0.0017326]
[1733370916883,0.29328605,103300.0,103290.0,0.0017326]
[1733370917095,0.36451769,103300.0,103290.0,0.0017326]
[1733370917323,0.19361,103300.0,103290.0,0.00190853]
[1733370917981,0.19361,103300.0,103260.0,0.058105]
[1733370918201,0.387287,103290.0,103260.0,0.15836538]
[1733370918409,0.193662,103280.0,103260.0,0.00560921]
[1733370918617,0.193667,103270.0,103260.0,0.00560921]
[1733370919086,0.48699905,103280.0,103260.0,0.00560921]
[1733370919328,0.387274,103290.0,103260.0,0.06371416]
[1733370919588,0.42243505,103280.0,103250.0,0.05972384]
[1733370919848,0.48972617,103280.0,103230.0,0.0017324]
[1733370920113,0.193674,103270.0,103240.0,0.09967605]
[1733370920340,0.2005866,103290.0,103240.0,0.09967605]
[1733370920341,0.0005866,103290.0,103260.0,0.058105]
[1733370920566,0.1942276,103290.0,103260.0,0.15777805]
[1733370920782,0.3878676,103290.0,103260.0,0.21588005]
[1733370921004,0.38731,103280.0,103250.0,0.116217]
[1733370921237,0.38731,103280.0,103250.0,0.23233175]
[1733370921485,0.580973,103280.0,103250.0,0.23233175]
[1733370921708,0.38731,103280.0,103250.0,0.17422475]
[1733370921929,0.193668,103270.0,103250.0,0.17422475]
[1733370922149,0.580972,103280.0,103250.0,0.17422475]
[1733370922371,0.45543347,103280.0,103250.0,0.23233575]
[1733370922605,0.45543347,103280.0,103250.0,0.23233175]
[1733370922860,0.38731,103280.0,103250.0,0.23233175]
[1733370923336,0.580972,103280.0,103250.0,0.23233175]
[1733370923791,0.580972,103280.0,103240.0,0.22772346]
[1733370923792,0.48702605,103270.0,103240.0,0.22772346]
[1733370924008,0.29334605,103270.0,103240.0,0.208112]
[1733370924235,0.193686,103260.0,103240.0,0.208112]
[1733370924700,0.29334605,103270.0,103240.0,0.266225]
[1733370924919,0.48702405,103270.0,103250.0,0.058111]
[1733370925145,0.387322,103280.0,103250.0,0.0847323]
[1733370925412,0.23436498,103290.0,103260.0,0.15777705]
[1733370925643,0.23435398,103290.0,103260.0,0.15777705]
[1733370926084,0.40999597,103290.0,103260.0,0.21587905]
[1733370926534,0.02272397,103290.0,103270.0,0.116199]
[1733370926802,0.02272397,103290.0,103270.0,0.08549661]
[1733370927015,0.193641,103290.0,103260.0,0.24037705]
[1733370927237,0.387283,103290.0,103260.0,0.29847905]
[1733370927467,0.387283,103290.0,103270.0,0.058099]
[1733370927699,0.730864,103300.0,103270.0,0.116198]
[1733370927927,0.19363,103290.0,103270.0,0.09434311]
[1733370928180,0.67618089,103300.0,103270.0,0.1167816]
[1733370928409,0.193629,103290.0,103270.0,0.0586826]
[1733370928641,0.67618689,103300.0,103270.0,0.1167786]
[1733370928858,0.19363,103290.0,103270.0,0.0586826]
[1733370929074,0.19363,103290.0,103270.0,0.09056581]
[1733370929309,0.57650584,103300.0,103270.0,0.1167786]
[1733370929531,0.18926584,103300.0,103280.0,0.058094]
[1733370929753,0.18926584,103300.0,103280.0,0.116185]
[1733370929966,0.15,103300.0,103290.0,0.15776405]
[1733370930189,0.1508694,103310.0,103290.0,0.24341793]
[1733370930405,0.1508694,103310.0,103300.0,0.058083]
[1733370930621,0.19066311,103310.0,103290.0,0.18532693]
[1733370930844,0.1508694,103310.0,103300.0,0.058083]
[1733370931071,0.1508694,103310.0,103300.0,0.23607235]
[1733370931287,0.1508694,103310.0,103300.0,0.29079065]
[1733370931510,0.3444614,103310.0,103300.0,0.02982832]
[1733370931762,0.3444614,103310.0,103290.0,0.208088]
[1733370932216,0.193622,103300.0,103270.0,0.0586826]
[1733370932431,0.29329805,103300.0,103270.0,0.0586826]
[1733370932652,0.193631,103290.0,103260.0,0.20841326]
[1733370932904,0.387273,103290.0,103260.0,0.36619431]
[1733370933350,0.14467939,103300.0,103260.0,0.20298731]
[1733370933579,0.193649,103280.0,103260.0,0.058105]
[1733370933800,0.29332505,103280.0,103250.0,0.058111]
[1733370934018,0.53568385,103280.0,103250.0,0.058111]
[1733370934234,0.34202185,103280.0,103250.0,0.058111]
[1733370934483,0.193667,103270.0,103250.0,0.058111]
[1733370935139,0.48699005,103280.0,103250.0,0.116217]
[1733370935357,0.48698505,103280.0,103250.0,0.116214]
[1733370935575,0.48698505,103280.0,103250.0,0.1912574]
[1733370935812,0.387278,103290.0,103260.0,0.096839]
[1733370936030,0.3878256,103300.0,103270.0,0.096829]
[1733370936250,0.48750165,103300.0,103270.0,0.145242]
[1733370936452,0.48750165,103300.0,103270.0,0.096826]
[1733370936665,0.48750165,103300.0,103280.0,0.09967605]
[1733370936666,0.0005866,103300.0,103280.0,0.09967605]
[1733370936894,0.0005866,103300.0,103280.0,0.14808405]
[1733370937112,0.0005866,103300.0,103280.0,0.19649205]
[1733370937323,0.0005866,103300.0,103280.0,0.048408]
[1733370937552,0.0005866,103300.0,103270.0,0.0680632]
[1733370937754,0.0005866,103300.0,103280.0,0.048412]
[1733370937966,0.1941976,103300.0,103280.0,0.096824]
[1733370938242,0.1941976,103300.0,103290.0,0.22539666]
[1733370938243,0.0005866,103300.0,103290.0,0.22539666]
[1733370938474,0.0005866,103300.0,103290.0,0.22368305]
[1733370940248,0.0005866,103300.0,103290.0,0.124007]
[1733370940465,0.0005866,103300.0,103290.0,0.048407]
[1733370940893,0.0005866,103300.0,103290.0,0.0675001]
[1733370941124,0.02419032,103310.0,103290.0,0.0675001]
[1733370941336,0.19377086,103310.0,103290.0,0.048404]
[1733370941545,0.19377086,103310.0,103280.0,0.048408]
[1733370941752,0.00017586,103310.0,103290.0,0.048403]
[1733370942025,0.00017586,103310.0,103290.0,0.096807]
[1733370942231,0.00017586,103310.0,103290.0,0.145211]
[1733370942450,0.00017586,103310.0,103290.0,0.16969971]
[1733370942671,0.00017586,103310.0,103300.0,0.048402]
[1733370943533,0.00017586,103310.0,103290.0,0.06673264]
[1733370943761,0.00017586,103310.0,103280.0,0.00171353]
[1733370943969,0.00017586,103310.0,103290.0,0.048403]
[1733370944174,0.00017586,103310.0,103280.0,0.10138958]
[1733370944396,0.00017586,103310.0,103290.0,0.048402]
[1733370944900,0.00017586,103310.0,103290.0,0.096805]
[1733370945119,0.00017586,103310.0,103300.0,0.048402]
[1733370946009,10.00017586,103310.0,103300.0,0.048402]
[1733370946888,10.00017586,103310.0,103290.0,0.16789751]
[1733370947113,10.00017586,103310.0,103290.0,0.21630051]
[1733370947326,10.00017586,103310.0,103300.0,0.048402]
[1733370948012,10.0527519,103310.0,103270.0,0.0017386]
[1733370948234,10.0527519,103310.0,103290.0,0.048403]
[1733370948448,10.1997539,103310.0,103280.0,0.048409]
[1733370948661,10.3933629,103310.0,103280.0,0.07819738]
[1733370948875,10.3933629,103310.0,103280.0,0.14473898]
[1733370949096,10.3933559,103310.0,103280.0,0.1149506]
[1733370949315,10.0061519,103310.0,103270.0,0.14982765]
[1733370949534,0.19363,103290.0,103270.0,0.0017386]
[1733370949834,0.387273,103290.0,103270.0,0.0017386]
[1733370950054,0.193648,103280.0,103270.0,0.0017386]
[1733370950276,0.29332405,103280.0,103270.0,0.0017386]
[1733370950491,0.36138376,103280.0,103270.0,0.0017386]
[1733370950712,0.29332405,103280.0,103270.0,0.0017386]
[1733370951162,0.37302405,103280.0,103270.0,0.0017386]
[1733370951832,0.62302405,103280.0,103270.0,0.0017386]
[1733370952264,0.62302405,103280.0,103270.0,0.00069989]
[1733370952475,0.193723,103240.0,103230.0,0.0404474]
[1733370952908,0.01872299,103240.0,103230.0,0.0401474]
[1733370953122,0.387438,103250.0,103230.0,0.0401474]
[1733370953335,0.29339905,103240.0,103230.0,0.0014324]
[1733370953786,0.39339905,103240.0,103230.0,0.002019]
[1733370954010,0.48900276,103240.0,103230.0,0.002019]
[1733370956202,0.47100275,103240.0,103230.0,0.002019]
[1733370956642,0.31478626,103240.0,103230.0,0.002019]
[1733370957097,0.41478626,103240.0,103230.0,0.002019]
[1733370958038,0.15844564,103240.0,103230.0,0.002019]
[1733370958461,0.33278627,103240.0,103230.0,0.002019]
[1733370960208,0.43278627,103240.0,103230.0,0.002019]
[1733370960442,0.45336397,103240.0,103230.0,0.002019]
[1733370960911,0.43278627,103240.0,103230.0,0.002019]
[1733370961359,0.1,103220.0,103210.0,0.0017368]
[1733370961574,0.193779,103210.0,103200.0,0.0017368]
[1733370961803,0.193775,103220.0,103200.0,0.00191266]
[1733370962027,0.193744,103230.0,103200.0,0.05035866]
[1733370962248,0.193761,103220.0,103200.0,0.05539453]
[1733370962462,0.48717505,103230.0,103200.0,0.05539453]
[1733370962676,0.193761,103220.0,103200.0,0.10384353]
[1733370962891,0.09967605,103220.0,103200.0,0.00191266]
[1733370963120,0.29345105,103220.0,103200.0,0.00191266]
[1733370963331,0.193779,103210.0,103200.0,0.00191266]
[1733370963553,0.29345505,103210.0,103200.0,0.00191266]
[1733370966257,0.3319312,103210.0,103200.0,0.00191266]
[1733370966483,0.03847615,103210.0,103200.0,0.00191266]
[1733370966992,0.0008698,103220.0,103200.0,0.15003771]
[1733370967209,0.0008698,103220.0,103200.0,0.16981299]
[1733370967431,0.0008698,103220.0,103200.0,0.12136399]
[1733370967647,0.0008698,103220.0,103200.0,0.16980899]
[1733370967859,0.0008698,103220.0,103200.0,0.21825799]
[1733370968087,0.193734,103240.0,103210.0,0.048444]
[1733370968280,0.23273725,103230.0,103210.0,0.14178181]
[1733370968505,0.387496,103230.0,103210.0,0.09333781]
[1733370968985,0.387496,103230.0,103200.0,0.10158871]
[1733370969200,0.19376,103220.0,103200.0,0.10158871]
[1733370969420,0.387535,103220.0,103200.0,0.10158871]
[1733370969866,0.387535,103220.0,103200.0,0.00191266]
[1733370970348,0.193779,103210.0,103200.0,0.00191266]
[1733370971213,0.17577899,103210.0,103200.0,0.00191266]
[1733370971652,0.387499,103230.0,103200.0,0.10158871]
[1733370971842,0.04003345,103240.0,103200.0,0.10158871]
[1733370972085,0.3875,103230.0,103200.0,0.10158871]
[1733370972305,0.387499,103230.0,103200.0,0.15003571]
[1733370972784,0.193763,103220.0,103200.0,0.15003571]
[1733370973001,0.193743,103230.0,103200.0,0.15003571]
[1733370973221,0.387498,103230.0,103200.0,0.19848471]
[1733370973694,0.29341005,103240.0,103210.0,0.048444]
[1733370973924,0.48715005,103240.0,103210.0,0.096888]
[1733370974132,0.68089105,103240.0,103210.0,0.048444]
[1733370974552,0.193743,103230.0,103210.0,0.048444]
[1733370974783,0.48714705,103240.0,103210.0,0.048444]
[1733370974997,0.193744,103230.0,103200.0,0.19603471]
[1733370975176,0.193744,103230.0,103200.0,0.19774955]
[1733370975623,0.193744,103230.0,103200.0,0.24619555]
[1733370975841,0.387499,103230.0,103200.0,0.19774955]
[1733370976061,0.387535,103220.0,103200.0,0.04791266]
[1733370976287,0.193779,103210.0,103200.0,0.00191266]
[1733370976545,1.5,103200.0,103190.0,0.289744]
[1733370976730,0.3884058,103220.0,103190.0,0.28992023]
[1733370976976,0.48808185,103220.0,103190.0,0.28992023]
[1733370977190,0.38756,103210.0,103190.0,0.23177623]
[1733370977408,0.38756,103210.0,103190.0,0.15017623]
[1733370977632,0.193798,103200.0,103190.0,0.15017623]
[1733370977845,0.193798,103200.0,103190.0,0.00017623]
[1733370977846,0.29347405,103200.0,103190.0,0.00017623]
[1733370978067,0.29347405,103200.0,103180.0,0.0008672]
[1733370978068,0.48728705,103200.0,103180.0,0.0008672]
[1733370978312,0.193817,103190.0,103180.0,0.00104347]
[1733370978775,0.09967605,103200.0,103180.0,0.00104347]
[1733370979013,0.09967605,103200.0,103180.0,0.05918947]
[1733370979224,0.29347505,103200.0,103180.0,0.02110492]
[1733370979442,0.48728605,103200.0,103180.0,0.02110492]
[1733370979659,0.29349305,103190.0,103170.0,0.003874]
[1733370979890,0.193854,103170.0,103160.0,0.016989]
[1733370980108,0.193847,103180.0,103160.0,0.01757702]
[1733370980318,0.193854,103170.0,103160.0,0.01757702]
[1733370980540,0.193873,103160.0,103150.0,0.0017378]
[1733370980992,0.29354905,103160.0,103150.0,0.0017378]
[1733370981679,0.37014905,103160.0,103150.0,0.0017378]
[1733370982105,0.47014905,103160.0,103150.0,0.0017378]
[1733370982319,0.393892,103150.0,103130.0,0.0017378]
[1733370982564,0.29358705,103140.0,103130.0,0.0017378]
[1733370982783,0.193929,103130.0,103120.0,0.001737]
[1733370983033,0.17957605,103130.0,103120.0,0.001737]
[1733370983250,0.63594198,103130.0,103120.0,0.001737]
[1733370983476,0.193967,103110.0,103100.0,5e-05]
[1733370983718,0.29364305,103110.0,103100.0,5e-05]
[1733370983945,0.31410692,103110.0,103100.0,5e-05]
[1733370984185,0.31469265,103110.0,103100.0,5e-05]
[1733370986002,0.31583238,103110.0,103100.0,5e-05]
[1733370986460,0.29899904,103110.0,103100.0,5e-05]
[1733370986720,0.00058573,103110.0,103100.0,5e-05]
[1733370986996,0.00058573,103110.0,103100.0,0.15792105]
[1733370987242,0.00058573,103110.0,103100.0,5e-05]
[1733370987476,0.29422878,103110.0,103100.0,5e-05]
[1733370987704,0.29422878,103110.0,103100.0,0.00179]
[1733370987933,0.193962,103120.0,103100.0,0.00179]
[1733370988174,0.387925,103120.0,103100.0,0.00237573]
[1733370988430,0.387925,103120.0,103100.0,0.00187573]
[1733370988671,0.48760105,103120.0,103100.0,0.00187573]
[1733370988918,0.29364305,103110.0,103100.0,0.00187573]
[1733370989124,10.19211027,103100.0,103090.0,0.001736]
[1733370989363,10.29178632,103100.0,103090.0,0.001736]
[1733370990713,0.294005,103090.0,103080.0,0.0017378]
[1733370990898,0.294024,103080.0,103070.0,0.0008675]
[1733370991143,0.39370005,103080.0,103070.0,0.0008675]
[1733370991806,0.29370005,103080.0,103070.0,0.0008675]
[1733370993611,0.39370005,103080.0,103070.0,0.0008675]
[1733370994097,0.29370005,103080.0,103070.0,0.0008675]
[1733370994332,0.38590436,103080.0,103070.0,0.0008675]
[1733370995000,0.5328105,103080.0,103070.0,0.0008675]
[1733370995214,0.5137105,103080.0,103070.0,0.0008675]
[1733370995647,0.4137105,103080.0,103070.0,0.0008675]
[1733370996351,0.39408,103050.0,103040.0,0.1517378]
[1733370996573,0.57335605,103050.0,103000.0,0.9]
[1733370996763,0.194155,103010.0,103000.0,0.9]
[1733370997454,0.194155,103010.0,102990.0,0.0499]
[1733370997455,0.29383105,103010.0,102990.0,0.0499]
[1733370997670,0.48800205,103010.0,102990.0,0.05007627]
[1733370997928,0.68217305,103010.0,102990.0,0.05007627]
[1733370998140,0.29383105,103010.0,102990.0,0.05007627]
[1733370998355,0.194174,103000.0,102990.0,0.00017627]
[1733370998606,0.44385005,103000.0,102990.0,0.00017627]
[1733370999318,0.24967605,103000.0,102990.0,0.00017627]
[1733370999581,0.44385005,103000.0,102990.0,0.00017627]
[1733370999804,0.24213,103030.0,103000.0,0.067955]
[1733370999805,0.194123,103030.0,103000.0,0.067955]
[1733371000033,0.29379905,103030.0,103000.0,0.01678073]
[1733371000250,0.194151,103020.0,102990.0,0.23578132]
[1733371000491,0.29379905,103030.0,103000.0,0.06796]
[1733371000727,0.194139,103020.0,102990.0,0.31687932]
[1733371000952,0.52814072,103030.0,102990.0,0.24891432]
[1733371001178,0.33401072,103030.0,102990.0,0.24891432]
[1733371001407,0.51014471,103030.0,103000.0,0.067956]
[1733371001642,0.194157,103010.0,102990.0,0.14923827]
[1733371001858,0.08692493,103050.0,103010.0,0.01307507]
[1733371002095,0.19415,103020.0,103010.0,0.01307507]
[1733371003627,0.09967605,103040.0,103010.0,0.01307507]
[1733371003628,0.48789205,103040.0,103010.0,0.11307507]
[1733371003855,0.29378105,103040.0,103010.0,0.11307507]
[1733371004065,0.0390558,103050.0,103030.0,0.18101607]
[1733371004287,0.33282585,103050.0,103030.0,0.04873428]
[1733371004513,0.29377005,103050.0,103030.0,0.04873428]
[1733371004725,0.194099,103040.0,103030.0,0.01307507]
[1733371004940,1.5,103030.0,103020.0,0.0759]
[1733371005159,0.48788505,103040.0,103010.0,60.11307507]
[1733371005380,0.194118,103030.0,103020.0,0.00017627]
[1733371005617,0.68199805,103040.0,103020.0,0.00017627]
[1733371006052,0.194099,103040.0,103020.0,0.10017627]
[1733371006266,0.33259385,103040.0,103000.0,0.124]
[1733371006481,0.194135,103030.0,103000.0,0.22385235]
[1733371006694,0.09967605,103040.0,103000.0,0.30152135]
[1733371006911,0.29378605,103040.0,103010.0,0.077662]
[1733371007137,0.52670948,103040.0,103010.0,0.077662]
[1733371007371,0.33259748,103040.0,103010.0,0.03791794]
[1733371007579,0.52670948,103040.0,103010.0,0.03791794]
[1733371007820,0.19412,103030.0,103010.0,0.03791794]
[1733371008032,0.194137,103020.0,103000.0,0.22385235]
[1733371008265,0.388287,103020.0,103000.0,0.1241763]
[1733371008487,0.194155,103010.0,103000.0,0.0001763]
[1733371008944,0.29383105,103010.0,103000.0,0.0001763]
[1733371010777,0.388287,103020.0,103000.0,0.0001763]
[1733371010997,0.194155,103010.0,103000.0,0.0001763]
[1733371011247,0.29383105,103010.0,103000.0,0.0001763]
[1733371013013,0.09967605,103010.0,103000.0,0.0001763]
[1733371013241,0.29383105,103010.0,102980.0,0.0197745]
[1733371013501,0.194193,102990.0,102980.0,0.00017608]
[1733371013732,0.68222805,103000.0,102980.0,0.00017608]
[1733371013949,0.29385105,103000.0,102980.0,0.00017608]
[1733371014164,0.48803705,103000.0,102980.0,0.00017608]
[1733371014376,0.29385105,103000.0,102980.0,0.00017608]
[1733371014595,0.29385105,103000.0,102970.0,0.077692]
[1733371014809,0.23592297,103020.0,102980.0,0.09967605]
[1733371015068,0.194156,103010.0,102980.0,0.17735605]
[1733371015280,0.388323,103010.0,102980.0,0.17735605]
[1733371015718,0.388323,103010.0,102980.0,0.25504005]
[1733371015939,10.0,103000.0,102980.0,0.25504005]
[1733371016186,9.98199999,103000.0,102980.0,0.29367128]
[1733371016412,9.98199999,103000.0,102990.0,0.077677]
[1733371017080,9.98199999,103000.0,102980.0,0.21598628]
[1733371017266,9.98199999,103000.0,102980.0,0.29366528]
[1733371017513,9.98199999,103000.0,102990.0,0.153777]
[1733371017728,8.98199999,103000.0,102980.0,0.03863123]
[1733371017942,9.00118498,103000.0,102970.0,0.20737129]
[1733371018157,0.388403,102990.0,102970.0,0.11508644]
[1733371018402,0.582611,102990.0,102970.0,0.11508644]
[1733371018612,0.388403,102990.0,102970.0,0.10017468]
[1733371018874,0.194195,102990.0,102970.0,0.10017468]
[1733371019322,0.48807805,102990.0,102970.0,0.00017644]
[1733371019534,0.48812505,102980.0,102950.0,0.0788]
[1733371019757,0.72825205,102980.0,102950.0,0.077707]
[1733371019982,0.194269,102950.0,102940.0,0.15]
[1733371020200,0.19428,102950.0,102900.0,0.255384]
[1733371020419,0.388561,102950.0,102920.0,0.116558]
[1733371020652,0.388519,102960.0,102920.0,0.155454]
[1733371020895,0.33980105,102980.0,102940.0,0.154014]
[1733371021118,0.194261,102960.0,102940.0,0.0763]
[1733371021425,0.29393705,102960.0,102920.0,0.16308631]
[1733371021593,0.194281,102950.0,102920.0,0.19401631]
[1733371021837,0.32335276,102950.0,102910.0,0.038831]
[1733371022073,0.194319,102930.0,102910.0,0.038831]
[1733371022309,0.11899504,102930.0,102910.0,0.038831]
[1733371022557,0.11899504,102930.0,102900.0,0.08474]
[1733371022558,0.29399405,102930.0,102900.0,0.240229]
[1733371022781,0.194288,102940.0,102910.0,0.077732]
[1733371022998,0.388525,102960.0,102920.0,0.077723]
[1733371023212,0.275131,102970.0,102930.0,0.17739305]
[1733371023459,0.33368596,102960.0,102930.0,0.077717]
[1733371023672,0.09985148,102960.0,102930.0,0.155434]
[1733371023906,0.00017543,102960.0,102940.0,0.077709]
[1733371024149,0.00017543,102960.0,102940.0,0.10339146]
[1733371024376,0.29410148,102960.0,102940.0,0.02568246]
[1733371024573,0.09985148,102960.0,102930.0,0.155434]
[1733371024846,0.00017543,102960.0,102940.0,0.25510005]
[1733371025071,0.00017543,102960.0,102950.0,0.077707]
[1733371025730,0.00017543,102960.0,102950.0,0.17738305]
[1733371026804,0.00017543,102960.0,102950.0,0.22488305]
[1733371027018,0.00017543,102960.0,102950.0,0.49054315]
[1733371027229,0.00017543,102960.0,102950.0,0.52038478]
[1733371027663,8.80699998,103000.0,102990.0,0.087387]
[1733371027885,8.80717645,103000.0,102990.0,0.087387]
[1733371028100,8.63217644,103000.0,102990.0,0.18706305]
[1733371028352,8.63217644,103000.0,102990.0,0.22324716]
[1733371029809,8.63217644,103000.0,102990.0,0.18706305]
[1733371030466,8.63217644,103000.0,102990.0,0.21862391]
[1733371030714,8.63217644,103000.0,102990.0,0.21690546]
[1733371030935,8.63217644,103000.0,102990.0,0.2367958]
[1733371031164,8.61417643,103000.0,102990.0,0.2367958]
[1733371031386,8.61417643,103000.0,102990.0,0.29593318]
[1733371031605,8.61417643,103000.0,102990.0,0.54593318]
[1733371032030,7.61417643,103000.0,102990.0,0.54593318]
[1733371032715,7.61417643,103000.0,102990.0,0.41609077]
[1733371032934,7.43917642,103000.0,102990.0,0.4458891]
[1733371033124,7.43917642,103000.0,102990.0,0.44588817]
[1733371033366,7.43917642,103000.0,102990.0,0.41609077]
[1733371034965,7.43917642,103000.0,102990.0,0.35695339]
[1733371035202,7.43917642,103000.0,102980.0,0.087389]
[1733371035417,1.5,102980.0,102970.0,0.04031452]
[1733371035632,1.5,102980.0,102970.0,0.22567586]
[1733371035845,7.44004672,103000.0,102990.0,0.087387]
[1733371036060,7.44004672,103000.0,102980.0,0.08739]
[1733371036272,1.5,102990.0,102980.0,0.10995619]
[1733371036486,7.44004672,103000.0,102980.0,0.10995619]
[1733371036705,7.44004672,103000.0,102990.0,0.087387]
[1733371037177,7.44004672,103000.0,102990.0,0.18706305]
[1733371037360,7.44004672,103000.0,102990.0,0.087387]